[Event "Early-Titled-Tuesday-Blitz-October-03-2023"]
[Site "Chess.com"]
[Date "2023.10.03"]
[Round "3"]
[White "Yushko_Olga"]
[Black "Gentlejimmy7"]
[Result "0-1"]
[WhiteElo "2085"]
[BlackElo "2511"]
[TimeControl "180+1"]
[EndTime "8:29:05 PDT"]
[Termination "Gentlejimmy7 won by resignation"]

1. d4 {[%clk 0:03:00]} 1... f5 {[%clk 0:02:33.3]} 2. g3 {[%clk 0:03:00]} 2...
Nf6 {[%clk 0:02:33.5]} 3. Bg2 {[%clk 0:03:00.3]} 3... g6 {[%clk 0:02:34.2]} 4.
Nh3 {[%clk 0:03:00.5]} 4... Bg7 {[%clk 0:02:34.6]} 5. O-O {[%clk 0:03:01.1]}
5... O-O {[%clk 0:02:35.1]} 6. Nd2 {[%clk 0:03:01.7]} 6... d5 {[%clk 0:02:31.1]}
7. e3 {[%clk 0:02:59.4]} 7... c6 {[%clk 0:02:31.2]} 8. f3 {[%clk 0:03:00]} 8...
e6 {[%clk 0:02:29.6]} 9. Nf2 {[%clk 0:03:00]} 9... b6 {[%clk 0:02:28.4]} 10. c3
{[%clk 0:03:00.5]} 10... Nbd7 {[%clk 0:02:26.4]} 11. Qc2 {[%clk 0:02:57.6]}
11... Bb7 {[%clk 0:02:26.5]} 12. e4 {[%clk 0:02:58]} 12... c5 {[%clk 0:02:26]}
13. b3 {[%clk 0:02:42.5]} 13... Rc8 {[%clk 0:02:24]} 14. Qd3 {[%clk 0:02:38.8]}
14... cxd4 {[%clk 0:02:13]} 15. cxd4 {[%clk 0:02:38.6]} 15... dxe4 {[%clk
0:02:13.7]} 16. fxe4 {[%clk 0:02:38.8]} 16... e5 {[%clk 0:02:14.4]} 17. Bb2
{[%clk 0:02:10.8]} 17... Nc5 {[%clk 0:01:52.7]} 18. Qc4+ {[%clk 0:02:07.3]}
18... Kh8 {[%clk 0:01:49.2]} 19. dxe5 {[%clk 0:01:39.6]} 19... Nfxe4 {[%clk
0:01:44.8]} 20. Ndxe4 {[%clk 0:01:33.2]} 20... Nxe4 {[%clk 0:01:45.1]} 21. Qb5
{[%clk 0:01:28.3]} 21... Rc5 {[%clk 0:01:43.1]} 22. Qb4 {[%clk 0:01:22.2]} 22...
Nxf2 {[%clk 0:01:40.4]} 23. Rxf2 {[%clk 0:01:08.9]} 23... Bxg2 {[%clk
0:01:38.7]} 24. Rxg2 {[%clk 0:01:09.3]} 24... Bxe5 {[%clk 0:01:38.9]} 25. Bxe5+
{[%clk 0:01:04.3]} 25... Rxe5 {[%clk 0:01:39.8]} 26. Qc3 {[%clk 0:01:03.5]}
26... Qf6 {[%clk 0:01:32.1]} 27. Rd1 {[%clk 0:00:56.6]} 27... Re7 {[%clk
0:01:28.2]} 28. Qb4 {[%clk 0:00:51.2]} 28... Rfe8 {[%clk 0:01:24.7]} 29. Rgd2
{[%clk 0:00:45.9]} 29... Qe5 {[%clk 0:01:19.7]} 30. Rd5 {[%clk 0:00:43.7]} 30...
Qe3+ {[%clk 0:01:18.5]} 31. Kg2 {[%clk 0:00:41.5]} 31... Qe2+ {[%clk 0:01:16]}
32. Kg1 {[%clk 0:00:39.8]} 32... Qxa2 {[%clk 0:01:09.4]} 33. Qd4+ {[%clk
0:00:38.6]} 33... Kg8 {[%clk 0:01:09]} 34. Rd8 {[%clk 0:00:38.4]} 34... Qxb3
{[%clk 0:01:02.8]} 35. Qf6 {[%clk 0:00:27.7]} 35... Qe3+ {[%clk 0:00:55.9]} 36.
Kg2 {[%clk 0:00:28.1]} 36... Qe4+ {[%clk 0:00:55]} 37. Kg1 {[%clk 0:00:25.6]}
37... Qe5 {[%clk 0:00:43.1]} 38. Qc6 {[%clk 0:00:21.5]} 38... Qe3+ {[%clk
0:00:42.7]} 39. Kf1 {[%clk 0:00:20.5]} 39... Qe4 {[%clk 0:00:37.4]} 40. Qb5
{[%clk 0:00:12.3]} 40... Qh1+ {[%clk 0:00:36.5]} 41. Kf2 {[%clk 0:00:12.2]}
41... Qxh2+ {[%clk 0:00:34]} 42. Kf1 {[%clk 0:00:12.4]} 42... Qe2+ {[%clk
0:00:29.8]} 43. Qxe2 {[%clk 0:00:11.4]} 43... Rxe2 {[%clk 0:00:30.7]} 44. Rxe8+
{[%clk 0:00:10.9]} 44... Rxe8 {[%clk 0:00:30.3]} 45. Rd7 {[%clk 0:00:11.1]}
45... Ra8 {[%clk 0:00:30.1]} 0-1

[Event "Early-Titled-Tuesday-Blitz-October-03-2023"]
[Site "Chess.com"]
[Date "2023.10.03"]
[Round "3"]
[White "McCarthyStone"]
[Black "Doudou2015"]
[Result "1-0"]
[WhiteElo "2387"]
[BlackElo "2182"]
[TimeControl "180+1"]
[EndTime "8:29:08 PDT"]
[Termination "McCarthyStone won on time"]

1. b3 {[%clk 0:01:13.5]} 1... Nf6 {[%clk 0:02:55.9]} 2. Bb2 {[%clk 0:01:12.7]}
2... e6 {[%clk 0:02:56.8]} 3. Nf3 {[%clk 0:01:09.8]} 3... d5 {[%clk 0:02:56.6]}
4. e3 {[%clk 0:01:05]} 4... c5 {[%clk 0:02:56]} 5. d4 {[%clk 0:00:59.8]} 5...
cxd4 {[%clk 0:02:48.5]} 6. exd4 {[%clk 0:00:54.9]} 6... Be7 {[%clk 0:02:48.2]}
7. Bd3 {[%clk 0:00:55.4]} 7... O-O {[%clk 0:02:48.1]} 8. O-O {[%clk 0:00:54.7]}
8... b6 {[%clk 0:02:45.6]} 9. Qe2 {[%clk 0:00:53.6]} 9... Nc6 {[%clk 0:02:41.5]}
10. a3 {[%clk 0:00:52.6]} 10... Bd6 {[%clk 0:02:35.7]} 11. Ne5 {[%clk
0:00:49.5]} 11... Qc7 {[%clk 0:02:32.6]} 12. f4 {[%clk 0:00:47.3]} 12... Bb7
{[%clk 0:02:25.3]} 13. Nd2 {[%clk 0:00:44]} 13... Rac8 {[%clk 0:02:20.1]} 14.
Rf3 {[%clk 0:00:41.3]} 14... Ne7 {[%clk 0:02:17.2]} 15. Rh3 {[%clk 0:00:33.7]}
15... g6 {[%clk 0:02:16]} 16. Ndf3 {[%clk 0:00:24.3]} 16... Ne4 {[%clk
0:02:07.8]} 17. Ng5 {[%clk 0:00:19.6]} 17... Nxg5 {[%clk 0:01:35.9]} 18. fxg5
{[%clk 0:00:20.5]} 18... Nf5 {[%clk 0:01:36.1]} 19. Ng4 {[%clk 0:00:07]} 19...
Kg7 {[%clk 0:01:31]} 20. Nf6 {[%clk 0:00:06.8]} 20... Rh8 {[%clk 0:01:30.8]} 21.
Bxf5 {[%clk 0:00:06.8]} 21... exf5 {[%clk 0:01:27.1]} 22. c4 {[%clk 0:00:06.1]}
22... Bf4 {[%clk 0:01:12.3]} 23. Rf1 {[%clk 0:00:02.7]} 23... Bxg5 {[%clk
0:01:11.2]} 24. Nh5+ {[%clk 0:00:03.5]} 24... gxh5 {[%clk 0:00:55.6]} 25. Qxh5
{[%clk 0:00:04.4]} 25... h6 {[%clk 0:00:50.6]} 26. Rxf5 {[%clk 0:00:04.3]} 26...
Qe7 {[%clk 0:00:40.1]} 27. Rhf3 {[%clk 0:00:04.7]} 27... Rhf8 {[%clk 0:00:23.2]}
28. h4 {[%clk 0:00:04.8]} 28... Qe1+ {[%clk 0:00:20.6]} 29. Rf1 {[%clk
0:00:03.9]} 29... Qxh4 {[%clk 0:00:19.3]} 30. Rxf7+ {[%clk 0:00:04.4]} 30...
Rxf7 {[%clk 0:00:16.2]} 31. Rxf7+ {[%clk 0:00:03.1]} 31... Kh8 {[%clk
0:00:13.2]} 32. Qg6 {[%clk 0:00:02.5]} 32... Be3+ {[%clk 0:00:12.2]} 33. Kf1
{[%clk 0:00:02.9]} 33... Qh1+ {[%clk 0:00:01.8]} 34. Ke2 {[%clk 0:00:02.8]} 1-0

[Event "Early-Titled-Tuesday-Blitz-October-03-2023"]
[Site "Chess.com"]
[Date "2023.10.03"]
[Round "3"]
[White "Mackster23"]
[Black "Taran2004"]
[Result "1-0"]
[WhiteElo "2624"]
[BlackElo "2429"]
[TimeControl "180+1"]
[EndTime "8:29:10 PDT"]
[Termination "Mackster23 won by resignation"]

1. e4 {[%clk 0:03:00.9]} 1... c6 {[%clk 0:02:40.2]} 2. d4 {[%clk 0:03:00.6]}
2... d5 {[%clk 0:02:40.8]} 3. Nd2 {[%clk 0:03:01]} 3... dxe4 {[%clk 0:02:40.3]}
4. Nxe4 {[%clk 0:03:01.9]} 4... Nf6 {[%clk 0:02:40.6]} 5. Nxf6+ {[%clk
0:03:02.3]} 5... exf6 {[%clk 0:02:41.4]} 6. c3 {[%clk 0:03:02.4]} 6... Bf5
{[%clk 0:02:40.6]} 7. Ne2 {[%clk 0:02:59.5]} 7... Bd6 {[%clk 0:02:39.7]} 8. Ng3
{[%clk 0:02:57.8]} 8... Bg6 {[%clk 0:02:40.1]} 9. Qe2+ {[%clk 0:02:37.3]} 9...
Qe7 {[%clk 0:02:39.9]} 10. h4 {[%clk 0:02:36.9]} 10... Bxg3 {[%clk 0:02:27]} 11.
fxg3 {[%clk 0:02:27.4]} 11... Qxe2+ {[%clk 0:02:21.5]} 12. Bxe2 {[%clk
0:02:28.3]} 12... h6 {[%clk 0:02:17.3]} 13. g4 {[%clk 0:02:14.2]} 13... O-O
{[%clk 0:02:16.2]} 14. g5 {[%clk 0:02:10.6]} 14... hxg5 {[%clk 0:02:12]} 15.
hxg5 {[%clk 0:02:11.5]} 15... fxg5 {[%clk 0:02:11.5]} 16. Bxg5 {[%clk
0:02:11.7]} 16... Re8 {[%clk 0:02:05.1]} 17. Kf2 {[%clk 0:02:11.4]} 17... Nd7
{[%clk 0:02:02.1]} 18. Rh3 {[%clk 0:01:51.6]} 18... f6 {[%clk 0:01:54.4]} 19.
Bf4 {[%clk 0:01:50.5]} 19... Nb6 {[%clk 0:01:36.4]} 20. Rah1 {[%clk 0:01:36.7]}
20... Nd5 {[%clk 0:01:27.6]} 21. Bd2 {[%clk 0:01:33.8]} 21... Bf5 {[%clk
0:01:27]} 22. Rh8+ {[%clk 0:01:30.3]} 22... Kf7 {[%clk 0:01:26.9]} 23. Bh5+
{[%clk 0:01:11.6]} 23... Bg6 {[%clk 0:01:25.3]} 24. Bxg6+ {[%clk 0:01:01.2]}
24... Kxg6 {[%clk 0:01:26.2]} 25. R8h3 {[%clk 0:00:59.6]} 25... Kf7 {[%clk
0:01:18.4]} 26. Rg3 {[%clk 0:00:56.7]} 26... Rh8 {[%clk 0:01:17.7]} 27. Rxh8
{[%clk 0:00:49.2]} 27... Rxh8 {[%clk 0:01:18.6]} 28. c4 {[%clk 0:00:49.8]} 28...
Ne7 {[%clk 0:01:07.8]} 29. Rb3 {[%clk 0:00:44.8]} 29... b6 {[%clk 0:01:06.2]}
30. Ra3 {[%clk 0:00:44.8]} 30... Ra8 {[%clk 0:00:58]} 31. Ra6 {[%clk 0:00:42.7]}
31... Nf5 {[%clk 0:00:56.5]} 32. Bc3 {[%clk 0:00:39]} 32... Nd6 {[%clk
0:00:54.7]} 33. c5 {[%clk 0:00:27.5]} 33... bxc5 {[%clk 0:00:44.8]} 34. dxc5
{[%clk 0:00:28.4]} 34... Ne4+ {[%clk 0:00:45.2]} 35. Kf3 {[%clk 0:00:27.5]}
35... Nxc5 {[%clk 0:00:45]} 36. Rxc6 {[%clk 0:00:27.2]} 36... Nd3 {[%clk
0:00:42.5]} 37. Rc7+ {[%clk 0:00:25.4]} 37... Kg6 {[%clk 0:00:41.9]} 38. Ke4
{[%clk 0:00:25.6]} 38... Nf2+ {[%clk 0:00:38.5]} 39. Kd5 {[%clk 0:00:21.4]}
39... a5 {[%clk 0:00:31.5]} 40. a4 {[%clk 0:00:19.7]} 40... Nd3 {[%clk
0:00:27.7]} 41. Kc4 {[%clk 0:00:17.7]} 41... Nf4 {[%clk 0:00:21.5]} 42. g3
{[%clk 0:00:15.4]} 42... Ne2 {[%clk 0:00:21.4]} 43. g4 {[%clk 0:00:15.9]} 43...
Nf4 {[%clk 0:00:21.3]} 44. Rc5 {[%clk 0:00:09.3]} 44... Rd8 {[%clk 0:00:14.2]}
45. Bxa5 {[%clk 0:00:07.1]} 45... Ne6 {[%clk 0:00:14.8]} 46. Bxd8 {[%clk
0:00:06.6]} 46... Nxd8 {[%clk 0:00:15.4]} 47. a5 {[%clk 0:00:06.4]} 47... Nb7
{[%clk 0:00:14.4]} 48. a6 {[%clk 0:00:06.7]} 48... Nxc5 {[%clk 0:00:14.3]} 49.
Kxc5 {[%clk 0:00:07.6]} 1-0

[Event "Early-Titled-Tuesday-Blitz-October-03-2023"]
[Site "Chess.com"]
[Date "2023.10.03"]
[Round "3"]
[White "Maxfan2008"]
[Black "vedantgoswami"]
[Result "0-1"]
[WhiteElo "2577"]
[BlackElo "2401"]
[TimeControl "180+1"]
[EndTime "8:29:10 PDT"]
[Termination "vedantgoswami won on time"]

1. d4 {[%clk 0:02:57]} 1... c6 {[%clk 0:02:58.6]} 2. c4 {[%clk 0:02:57.6]} 2...
d5 {[%clk 0:02:57.4]} 3. Nc3 {[%clk 0:02:58.1]} 3... g6 {[%clk 0:02:56.2]} 4.
Nf3 {[%clk 0:02:56.1]} 4... Bg7 {[%clk 0:02:56.4]} 5. e3 {[%clk 0:02:56.1]} 5...
Nf6 {[%clk 0:02:55.4]} 6. Be2 {[%clk 0:02:54.7]} 6... O-O {[%clk 0:02:53]} 7.
O-O {[%clk 0:02:54.8]} 7... dxc4 {[%clk 0:02:52.8]} 8. Bxc4 {[%clk 0:02:53.1]}
8... b6 {[%clk 0:02:52.7]} 9. e4 {[%clk 0:02:49]} 9... Bb7 {[%clk 0:02:44.3]}
10. e5 {[%clk 0:02:47.6]} 10... Nd5 {[%clk 0:02:42.6]} 11. e6 {[%clk 0:02:30.1]}
11... f6 {[%clk 0:02:33.4]} 12. Re1 {[%clk 0:02:20.8]} 12... Na6 {[%clk
0:02:32.6]} 13. Nxd5 {[%clk 0:01:52.4]} 13... cxd5 {[%clk 0:02:31.3]} 14. Bb3
{[%clk 0:01:49.1]} 14... Nc7 {[%clk 0:02:26.9]} 15. Bf4 {[%clk 0:01:49]} 15...
Rc8 {[%clk 0:02:18.5]} 16. h4 {[%clk 0:01:40.7]} 16... Nb5 {[%clk 0:02:07.1]}
17. Ba4 {[%clk 0:01:12.1]} 17... Nd6 {[%clk 0:02:04.5]} 18. Bd7 {[%clk 0:01:12]}
18... Ne4 {[%clk 0:01:57.7]} 19. Bxc8 {[%clk 0:01:10.8]} 19... Bxc8 {[%clk
0:01:56.2]} 20. Nd2 {[%clk 0:01:02.3]} 20... f5 {[%clk 0:01:44.9]} 21. Be5
{[%clk 0:00:45.3]} 21... Bxe5 {[%clk 0:01:41.3]} 22. dxe5 {[%clk 0:00:46.2]}
22... Bxe6 {[%clk 0:01:40.3]} 23. Nb3 {[%clk 0:00:42.7]} 23... Bf7 {[%clk
0:01:27.4]} 24. f3 {[%clk 0:00:34.3]} 24... Ng3 {[%clk 0:01:14.7]} 25. e6 {[%clk
0:00:31.7]} 25... Be8 {[%clk 0:01:10.8]} 26. Qd4 {[%clk 0:00:28.3]} 26... Bc6
{[%clk 0:01:03]} 27. Rac1 {[%clk 0:00:26.9]} 27... Qd6 {[%clk 0:00:59.8]} 28.
Qe5 {[%clk 0:00:23.3]} 28... Qxe5 {[%clk 0:00:46.3]} 29. Rxe5 {[%clk 0:00:24.2]}
29... Ba8 {[%clk 0:00:41.4]} 30. Nd4 {[%clk 0:00:22.9]} 30... Kg7 {[%clk
0:00:34.3]} 31. Rc7 {[%clk 0:00:19.2]} 31... Kf6 {[%clk 0:00:34]} 32. Re1 {[%clk
0:00:19.4]} 32... h6 {[%clk 0:00:26.2]} 33. Kf2 {[%clk 0:00:18]} 33... f4 {[%clk
0:00:25.4]} 34. Rxa7 {[%clk 0:00:16.8]} 34... Rc8 {[%clk 0:00:25.1]} 35. a4
{[%clk 0:00:14.8]} 35... Rc4 {[%clk 0:00:23.7]} 36. Rd1 {[%clk 0:00:13.4]} 36...
Bc6 {[%clk 0:00:20.8]} 37. Nxc6 {[%clk 0:00:13.2]} 37... Rxc6 {[%clk 0:00:20.4]}
38. Rd2 {[%clk 0:00:10.2]} 38... Kxe6 {[%clk 0:00:19.4]} 39. Ra6 {[%clk
0:00:04.5]} 39... Kd6 {[%clk 0:00:15.4]} 40. b4 {[%clk 0:00:04.9]} 40... Rc1
{[%clk 0:00:08.5]} 0-1

[Event "Early-Titled-Tuesday-Blitz-October-03-2023"]
[Site "Chess.com"]
[Date "2023.10.03"]
[Round "3"]
[White "pasteta13"]
[Black "MikeSailer"]
[Result "1-0"]
[WhiteElo "2428"]
[BlackElo "2151"]
[TimeControl "180+1"]
[EndTime "8:29:11 PDT"]
[Termination "pasteta13 won by checkmate"]

1. e4 {[%clk 0:03:00.9]} 1... d5 {[%clk 0:03:00]} 2. exd5 {[%clk 0:03:00.5]}
2... Qxd5 {[%clk 0:03:00.3]} 3. Nc3 {[%clk 0:03:01.1]} 3... Qd6 {[%clk
0:03:00.2]} 4. Nf3 {[%clk 0:03:01.4]} 4... c6 {[%clk 0:02:59.6]} 5. d4 {[%clk
0:03:01.7]} 5... Bg4 {[%clk 0:02:59]} 6. Bc4 {[%clk 0:02:59.9]} 6... Nf6 {[%clk
0:02:54.6]} 7. h3 {[%clk 0:02:48.7]} 7... Bh5 {[%clk 0:02:53.5]} 8. Be3 {[%clk
0:02:47.3]} 8... e6 {[%clk 0:02:52.7]} 9. g4 {[%clk 0:02:43.4]} 9... Bg6 {[%clk
0:02:52.1]} 10. Ne5 {[%clk 0:02:43.9]} 10... Nbd7 {[%clk 0:02:51.7]} 11. f4
{[%clk 0:02:42.6]} 11... Ne4 {[%clk 0:02:40.9]} 12. Qf3 {[%clk 0:01:59.7]} 12...
Nxc3 {[%clk 0:02:36.2]} 13. bxc3 {[%clk 0:01:58.6]} 13... Bxc2 {[%clk 0:02:17]}
14. O-O {[%clk 0:01:44.4]} 14... f6 {[%clk 0:02:04.4]} 15. Rf2 {[%clk
0:01:38.4]} 15... Bg6 {[%clk 0:01:53.9]} 16. f5 {[%clk 0:01:35.1]} 16... exf5
{[%clk 0:01:49.7]} 17. gxf5 {[%clk 0:01:22.4]} 17... fxe5 {[%clk 0:01:43]} 18.
fxg6 {[%clk 0:01:22.3]} 18... O-O-O {[%clk 0:01:36.8]} 19. gxh7 {[%clk
0:00:51.2]} 19... Rxh7 {[%clk 0:01:30.1]} 20. Qg4 {[%clk 0:00:39]} 20... Kb8
{[%clk 0:01:19.2]} 21. Bg5 {[%clk 0:00:18.9]} 21... Be7 {[%clk 0:01:13.5]} 22.
Rd1 {[%clk 0:00:16]} 22... Bxg5 {[%clk 0:01:04.8]} 23. Qxg5 {[%clk 0:00:16]}
23... Rdh8 {[%clk 0:00:53.8]} 24. Bf1 {[%clk 0:00:10.7]} 24... exd4 {[%clk
0:00:44.4]} 25. Rxd4 {[%clk 0:00:10.1]} 25... Qe5 {[%clk 0:00:38.8]} 26. Qg6
{[%clk 0:00:05.3]} 26... Nf6 {[%clk 0:00:35.6]} 27. Bg2 {[%clk 0:00:05.3]} 27...
a6 {[%clk 0:00:30]} 28. Qf7 {[%clk 0:00:05.3]} 28... Ka8 {[%clk 0:00:27.9]} 29.
Rb2 {[%clk 0:00:04.2]} 29... Qe1+ {[%clk 0:00:25.6]} 30. Kh2 {[%clk 0:00:03]}
30... Qe5+ {[%clk 0:00:18.7]} 31. Kg1 {[%clk 0:00:02.9]} 31... Qe1+ {[%clk
0:00:14.8]} 32. Bf1 {[%clk 0:00:03.3]} 32... Qg3+ {[%clk 0:00:13.9]} 33. Rg2
{[%clk 0:00:03.4]} 33... Qe3+ {[%clk 0:00:14.5]} 34. Rf2 {[%clk 0:00:02.2]}
34... Rxh3 {[%clk 0:00:10]} 35. Bxh3 {[%clk 0:00:02.1]} 35... Rxh3 {[%clk
0:00:09.9]} 36. Qf8+ {[%clk 0:00:01.9]} 36... Ka7 {[%clk 0:00:10.1]} 37. Qc5+
{[%clk 0:00:02.2]} 37... Ka8 {[%clk 0:00:11]} 38. Rd8# {[%clk 0:00:02.3]} 1-0

[Event "Early-Titled-Tuesday-Blitz-October-03-2023"]
[Site "Chess.com"]
[Date "2023.10.03"]
[Round "3"]
[White "KononenkoD"]
[Black "ploxoi"]
[Result "0-1"]
[WhiteElo "2613"]
[BlackElo "2453"]
[TimeControl "180+1"]
[EndTime "8:29:12 PDT"]
[Termination "ploxoi won by resignation"]

1. e4 {[%clk 0:03:00.4]} 1... c5 {[%clk 0:03:00]} 2. Nf3 {[%clk 0:03:00.6]} 2...
e6 {[%clk 0:03:00.6]} 3. d4 {[%clk 0:03:00.8]} 3... cxd4 {[%clk 0:03:01.5]} 4.
Nxd4 {[%clk 0:03:01.5]} 4... Nc6 {[%clk 0:03:02.4]} 5. Nc3 {[%clk 0:03:01.3]}
5... Qc7 {[%clk 0:03:02.9]} 6. Bc4 {[%clk 0:02:59.6]} 6... a6 {[%clk 0:02:47.1]}
7. Bb3 {[%clk 0:02:59.1]} 7... Nf6 {[%clk 0:02:46.8]} 8. O-O {[%clk 0:02:57.7]}
8... Be7 {[%clk 0:02:47.1]} 9. Be3 {[%clk 0:02:56.3]} 9... O-O {[%clk 0:02:44]}
10. f4 {[%clk 0:02:56.1]} 10... d6 {[%clk 0:02:44.5]} 11. f5 {[%clk 0:02:51.1]}
11... Na5 {[%clk 0:02:38.1]} 12. fxe6 {[%clk 0:02:50.1]} 12... Nc4 {[%clk
0:02:19.5]} 13. exf7+ {[%clk 0:02:46.8]} 13... Kh8 {[%clk 0:02:19.6]} 14. Qd3
{[%clk 0:02:20.1]} 14... Nxb2 {[%clk 0:02:06.7]} 15. Qd2 {[%clk 0:02:20.2]}
15... Nc4 {[%clk 0:02:06.5]} 16. Bxc4 {[%clk 0:02:19.4]} 16... Qxc4 {[%clk
0:02:07.4]} 17. Rae1 {[%clk 0:02:16.5]} 17... Bd7 {[%clk 0:02:02.8]} 18. Nf5
{[%clk 0:02:09.6]} 18... Bxf5 {[%clk 0:02:01.9]} 19. exf5 {[%clk 0:02:06.2]}
19... d5 {[%clk 0:01:56.4]} 20. Kh1 {[%clk 0:02:03.3]} 20... Bb4 {[%clk
0:01:44.6]} 21. Bd4 {[%clk 0:01:57.3]} 21... Rac8 {[%clk 0:01:43.6]} 22. Rf3
{[%clk 0:01:50.5]} 22... Ne4 {[%clk 0:01:32.5]} 23. Rxe4 {[%clk 0:01:44.6]}
23... dxe4 {[%clk 0:01:31.7]} 24. Bxg7+ {[%clk 0:01:40.4]} 24... Kxg7 {[%clk
0:01:30.7]} 25. Qg5+ {[%clk 0:01:40.3]} 25... Kxf7 {[%clk 0:01:27.5]} 26. Qh5+
{[%clk 0:01:35.7]} 26... Ke7 {[%clk 0:01:25.3]} 27. Qh4+ {[%clk 0:01:30.4]}
27... Ke8 {[%clk 0:00:52.2]} 28. Nxe4 {[%clk 0:01:24.9]} 28... Qe2 {[%clk
0:00:50.8]} 29. Qh5+ {[%clk 0:01:08.1]} 29... Rf7 {[%clk 0:00:50]} 30. Nf6+
{[%clk 0:01:01.5]} 30... Kd8 {[%clk 0:00:29.3]} 31. h4 {[%clk 0:00:44.1]} 31...
Qe1+ {[%clk 0:00:20.3]} 32. Kh2 {[%clk 0:00:43.8]} 32... Bd6+ {[%clk 0:00:20.7]}
33. g3 {[%clk 0:00:40]} 33... Rxf6 {[%clk 0:00:21.3]} 34. Qg5 {[%clk 0:00:33]}
34... Qe7 {[%clk 0:00:19.2]} 35. Rd3 {[%clk 0:00:31]} 35... Kd7 {[%clk
0:00:19.8]} 36. Qg4 {[%clk 0:00:27.8]} 36... Rxc2+ {[%clk 0:00:19.9]} 37. Kh3
{[%clk 0:00:28]} 37... Rc6 {[%clk 0:00:20.2]} 38. Qb4 {[%clk 0:00:26.3]} 38...
Kc7 {[%clk 0:00:16.7]} 39. Qa5+ {[%clk 0:00:25.5]} 39... Kc8 {[%clk 0:00:17]}
40. Qd5 {[%clk 0:00:24]} 40... Qe5 {[%clk 0:00:16.7]} 41. Qg8+ {[%clk
0:00:22.4]} 41... Kc7 {[%clk 0:00:17.4]} 42. Qg7+ {[%clk 0:00:20.9]} 42... Kb8
{[%clk 0:00:18]} 43. Rf3 {[%clk 0:00:21]} 43... Rxf5 {[%clk 0:00:17.2]} 44. Qg8+
{[%clk 0:00:21.1]} 44... Ka7 {[%clk 0:00:17.2]} 45. Qg4 {[%clk 0:00:20.5]} 45...
Rxf3 {[%clk 0:00:17.1]} 46. Qxf3 {[%clk 0:00:21.4]} 46... Qxg3+ {[%clk
0:00:17.5]} 47. Qxg3 {[%clk 0:00:21]} 47... Bxg3 {[%clk 0:00:18.4]} 0-1

[Event "Early-Titled-Tuesday-Blitz-October-03-2023"]
[Site "Chess.com"]
[Date "2023.10.03"]
[Round "3"]
[White "whiteglovethief"]
[Black "ljm509"]
[Result "0-1"]
[WhiteElo "2519"]
[BlackElo "2329"]
[TimeControl "180+1"]
[EndTime "8:29:13 PDT"]
[Termination "ljm509 won by resignation"]

1. d4 {[%clk 0:03:00.9]} 1... Nf6 {[%clk 0:02:59.4]} 2. c4 {[%clk 0:03:01.3]}
2... e6 {[%clk 0:02:55.5]} 3. Nf3 {[%clk 0:03:00.4]} 3... d5 {[%clk 0:02:55.4]}
4. g3 {[%clk 0:03:00.1]} 4... c5 {[%clk 0:02:55.4]} 5. cxd5 {[%clk 0:02:59.6]}
5... Nxd5 {[%clk 0:02:54.9]} 6. Bg2 {[%clk 0:03:00.5]} 6... Nc6 {[%clk
0:02:53.2]} 7. O-O {[%clk 0:02:58.6]} 7... cxd4 {[%clk 0:02:53.1]} 8. Nxd4
{[%clk 0:02:58.2]} 8... Be7 {[%clk 0:02:33.3]} 9. Nc3 {[%clk 0:02:55.7]} 9...
O-O {[%clk 0:02:20.4]} 10. Nxd5 {[%clk 0:02:53.4]} 10... exd5 {[%clk 0:02:19.1]}
11. Bf4 {[%clk 0:02:45.4]} 11... Bf6 {[%clk 0:02:15.2]} 12. Nxc6 {[%clk
0:02:41.3]} 12... bxc6 {[%clk 0:02:15.1]} 13. Rc1 {[%clk 0:02:40]} 13... Bd7
{[%clk 0:02:12.3]} 14. b3 {[%clk 0:02:38.4]} 14... Qa5 {[%clk 0:02:10.1]} 15.
Qc2 {[%clk 0:02:34.4]} 15... Rfe8 {[%clk 0:02:07]} 16. e4 {[%clk 0:02:32.5]}
16... Rac8 {[%clk 0:01:12.8]} 17. Rfe1 {[%clk 0:02:24.3]} 17... h6 {[%clk
0:01:09.3]} 18. e5 {[%clk 0:02:23]} 18... Bd8 {[%clk 0:01:05.5]} 19. Bd2 {[%clk
0:02:20.5]} 19... Qa6 {[%clk 0:00:58.4]} 20. Bf1 {[%clk 0:02:16.4]} 20... Qb7
{[%clk 0:00:57.2]} 21. f4 {[%clk 0:02:06.4]} 21... Bb6+ {[%clk 0:00:55.3]} 22.
Kh1 {[%clk 0:02:06.5]} 22... Bg4 {[%clk 0:00:46.7]} 23. Bg2 {[%clk 0:02:03.5]}
23... Qd7 {[%clk 0:00:41.1]} 24. Be3 {[%clk 0:01:57.7]} 24... d4 {[%clk
0:00:36.7]} 25. Bg1 {[%clk 0:01:48.5]} 25... c5 {[%clk 0:00:33.2]} 26. Rcd1
{[%clk 0:01:36.5]} 26... Be6 {[%clk 0:00:31.4]} 27. Qe4 {[%clk 0:01:25.4]} 27...
Red8 {[%clk 0:00:25.9]} 28. Rf1 {[%clk 0:01:24]} 28... Bg4 {[%clk 0:00:20.7]}
29. f5 {[%clk 0:01:18.6]} 29... Bxd1 {[%clk 0:00:18.6]} 30. Rxd1 {[%clk
0:01:19.5]} 30... c4 {[%clk 0:00:15.7]} 31. Bf1 {[%clk 0:01:15.5]} 31... c3
{[%clk 0:00:13.8]} 32. Bc4 {[%clk 0:01:13.7]} 32... Qc6 {[%clk 0:00:10.8]} 33.
Qxc6 {[%clk 0:01:12.5]} 33... Rxc6 {[%clk 0:00:11.1]} 34. e6 {[%clk 0:01:10.8]}
34... fxe6 {[%clk 0:00:11.3]} 35. fxe6 {[%clk 0:01:10.2]} 35... Kf8 {[%clk
0:00:11]} 36. Rf1+ {[%clk 0:01:09.3]} 36... Ke8 {[%clk 0:00:10.8]} 37. Rc1
{[%clk 0:00:56.1]} 37... Ke7 {[%clk 0:00:08.7]} 38. Bd3 {[%clk 0:00:42.1]} 38...
Rxe6 {[%clk 0:00:08.3]} 39. Kg2 {[%clk 0:00:42.2]} 39... Rf8 {[%clk 0:00:08]}
40. Bc4 {[%clk 0:00:38]} 40... Ref6 {[%clk 0:00:05.2]} 41. Re1+ {[%clk
0:00:37.6]} 41... Kd7 {[%clk 0:00:04.5]} 42. Rd1 {[%clk 0:00:37.2]} 42... Rd6
{[%clk 0:00:04.1]} 43. Bf2 {[%clk 0:00:31.6]} 43... Re8 {[%clk 0:00:04.3]} 44.
g4 {[%clk 0:00:29.9]} 44... Rde6 {[%clk 0:00:04.3]} 45. Bb5+ {[%clk 0:00:28.8]}
45... Kc7 {[%clk 0:00:03.8]} 46. Bxd4 {[%clk 0:00:26.1]} 46... c2 {[%clk
0:00:03]} 47. Bxb6+ {[%clk 0:00:25.4]} 47... Kxb6 {[%clk 0:00:02.7]} 48. Rc1
{[%clk 0:00:24.1]} 48... Kxb5 {[%clk 0:00:03.2]} 49. Rxc2 {[%clk 0:00:25]} 49...
Re2+ {[%clk 0:00:02.4]} 50. Kf3 {[%clk 0:00:25]} 50... Rxc2 {[%clk 0:00:02.4]}
0-1